bitfinex/quotes_SOLUSD_20211001
["timestamp","ask_amount","ask_price","bid_price","bid_amount"]
[1633114936262,17.8751,163.41,163.34,7.09927008]
[1633114936663,17.8751,163.41,163.32,7.09968034]
[1633114937263,17.8751,163.41,163.29,22.79987373]
[1633114937466,17.8751,163.41,163.3,7.10018881]
[1633114937867,17.8963976,163.41,163.3,7.10018881]
[1633114941965,17.8963976,163.41,163.23,18.89986827]
[1633114942166,36.5143976,163.41,163.23,18.89986827]
[1633114942767,36.5143976,163.41,163.24,29.51988413]
[1633114942968,36.5143976,163.41,163.25,18.9001757]
[1633114944269,97.9943976,163.41,163.25,18.9001757]
[1633114944468,122.70065144,163.41,163.25,7.10151799]
[1633114944667,136.84773887,163.41,163.25,7.10151799]
[1633114946873,64.22,163.39,163.17,0.02088]
[1633114947073,64.22,163.32,163.11,72.2208]
[1633114947275,0.0212976,163.25,163.12,11.56002893]
[1633114947474,2.57,163.24,163.12,11.56002893]
[1633114947672,0.0212976,163.23,163.12,11.56002893]
[1633114947873,2.57,163.22,163.13,28.21210465]
[1633114948773,17.8943,163.22,163.13,28.21210465]
[1633114949378,17.8943,163.22,163.07,47.12713177]
[1633114949574,17.8943,163.22,163.08,11.55472122]
[1633114949776,17.8943,163.22,163.07,47.12713177]
[1633114950992,41.7073,163.22,163.07,47.12713177]
[1633114951378,72.7273,163.22,163.07,47.12713177]
[1633114951778,72.7273,163.22,163.08,24.36283787]
[1633114952177,0.0212976,163.19,163.07,560.29531357]
[1633114952377,66.79,163.18,163.07,514.28321357]
[1633114952577,64.22,163.16,163.07,514.28321357]
[1633114952778,64.22,163.14,163.07,514.28321357]
[1633114952977,2.57,163.13,163.07,1.11503177]
[1633114953377,19.82396357,163.13,162.98,23.28119143]
[1633114953578,2.57,163.13,162.98,23.28119143]
[1633114953781,14.14708743,163.12,162.98,23.28119143]
[1633114953978,2.57,163.11,162.98,23.28119143]
[1633114954177,2.57,163.11,162.9,2.59088]
[1633114954379,64.22,163.07,162.87,11.56515513]
[1633114954579,64.22,163.05,162.84,11.56710242]
[1633114954779,64.22,163.05,162.85,0.02088]
[1633114954780,2.57,163.04,162.85,0.02088]
[1633114955177,2.57,163.04,162.85,21.41903119]
[1633114955376,2.57,163.04,162.86,11.56670399]
[1633114955577,2.57,163.04,162.95,22.01042816]
[1633114955777,2.57,163.04,162.95,21.01042816]
[1633114957477,2.57,163.04,162.87,0.02088]
[1633114957879,2.57,163.04,162.86,430.40092908]
[1633114958078,15.3446,163.0,162.86,430.40092908]
[1633114958279,2.57,162.99,162.86,430.40092908]
[1633114958579,2.57,162.98,162.87,27.73010062]
[1633114958780,2.57,162.97,162.87,27.73010062]
[1633114958983,81.510655,163.03,162.87,27.73010062]
[1633114958984,2.57,162.96,162.87,27.73010062]
[1633114959181,2.57,162.96,162.86,430.40092908]
[1633114959681,15.3496,162.95,162.86,430.40092908]
[1633114959881,2.57,162.94,162.86,430.40092908]
[1633114960081,2.57,162.94,162.87,25.97704546]
[1633114964387,2.57,162.94,162.83,536.19802453]
[1633114965389,15.3526,162.91,162.83,564.75861563]
[1633114965589,2.57,162.9,162.83,564.75861563]
[1633114967208,2.57,162.9,162.83,536.19802453]
[1633114968010,2.57,162.9,162.75,79.4632]
[1633114968209,2.57,162.9,162.81,24.01023192]
[1633114968614,15.3569,162.87,162.75,79.4632]
[1633114968812,2.5912976,162.86,162.75,79.4632]
[1633114969010,0.0212976,162.85,162.71,75.5102]
[1633114969212,2.57,162.84,162.71,75.5102]
[1633114969409,2.57,162.84,162.72,11.02573036]
[1633114969608,2.57,162.84,162.72,37.91442428]
[1633114970009,15.3608,162.82,162.72,26.88869392]
[1633114970211,2.57,162.81,162.73,11.02897741]
[1633114971412,0.0012976,162.85,162.82,15.3608]
[1633114971613,0.02088,162.91,162.82,33.1068]
[1633114971813,2.57,162.91,162.83,24.95056367]
[1633114973910,2.57,162.91,162.84,11.03546412]
[1633114974514,2.57,162.91,162.83,24.95056367]
[1633114974911,2.57,162.91,162.84,11.03537225]
[1633114975112,2.57,162.91,162.83,24.95056367]
[1633114976711,17.9232,162.91,162.83,24.95056367]
[1633114977312,17.8932,162.91,162.83,24.95056367]
[1633114978013,17.8932,162.91,162.84,11.04786557]
[1633114979114,17.8932,162.91,162.82,15.3608]
[1633114980316,79.3732,162.91,162.78,11.05276946]
[1633114980517,0.02088,162.9,162.76,11.05337598]
[1633114980715,2.57,162.89,162.76,11.05337598]
[1633114981316,2.57,162.89,162.76,35.36915166]
[1633114981919,2.57,162.89,162.79,23.05166431]
[1633114982122,2.57,162.89,162.8,11.05811563]
[1633114982518,2.57,162.89,162.79,11.05826512]
[1633114982720,15.3615,162.83,162.79,11.05826512]
[1633114983920,15.3615,162.83,162.77,8.88589353]
[1633114986621,2.57,162.82,162.77,8.88589353]
[1633114987023,2.57,162.82,162.76,8.89075721]
[1633114988821,2.57,162.82,162.81,5.33475143]
[1633114989827,7.01,162.82,162.74,23.93269521]
[1633114990023,7.01,162.82,162.75,10.5353378]
[1633114990224,2.57,162.84,162.82,113.01]
[1633114990425,2.57,162.84,162.83,37.59235571]
[1633114992228,31.02,162.97,162.84,1.3697]
[1633114992433,2.57,162.93,162.84,1.3697]
[1633114992629,2.57,162.93,162.84,11.90417152]
[1633114993829,17.9232,162.91,162.84,11.90417152]
[1633114994029,17.9232,162.91,162.82,7.01]
[1633114994229,4.75,162.9,162.82,7.01]
[1633114994430,2.57,162.89,162.82,7.01]
[1633114995629,15.3595,162.86,162.82,7.01]
[1633114996830,2.57,162.85,162.78,10.53924419]
[1633114997633,2.57,162.85,162.7,10.53932508]
[1633114997832,2.57,162.85,162.71,29.78985845]
[1633114998030,4.75,162.84,162.72,10.53942943]
[1633114998231,2.57,162.83,162.72,10.53942943]
[1633114998431,2.57,162.83,162.74,26.16861419]
[1633114998634,2.57,162.83,162.75,10.43837785]
[1633114999632,15.3649,162.79,162.75,10.43837785]
[1633114999833,17.9349,162.79,162.69,10.43791451]
[1633115000433,17.9349,162.79,162.7,24.14609773]
[1633115000635,17.9349,162.79,162.71,10.43755522]
[1633115001634,4.75,162.78,162.71,10.43755522]
[1633115002536,4.75,162.78,162.71,9.43755522]
[1633115002739,4.75,162.78,162.71,8.93755522]
[1633115007543,4.75,162.78,162.71,8.43755522]
[1633115008147,4.75,162.78,162.68,79.8235]
[1633115008345,15.3693,162.73,162.68,79.8235]
[1633115008745,4.75,162.72,162.68,79.8235]
[1633115008945,4.75,162.72,162.68,78.8235]
[1633115009146,4.75,162.72,162.68,104.55911409]
[1633115010346,2.57,162.79,162.73,15.3607]
[1633115010549,2.57,162.79,162.73,33.6417]
[1633115010747,2.57,162.82,162.74,27.58620617]
[1633115010949,2.57,162.84,162.74,27.58620617]
[1633115011750,15.3648,162.78,162.74,27.58620617]
[1633115016153,2.57,162.84,162.74,27.58620617]
[1633115016353,2.57,162.84,162.74,48.11020617]
[1633115016958,2.57,162.84,162.74,20.524]
[1633115017154,2.57,162.84,162.73,15.3607]
[1633115017959,2.57,162.84,162.73,40.37679787]
[1633115018657,15.3621,162.81,162.73,40.37679787]
[1633115018857,15.3621,162.81,162.73,15.3607]
[1633115024673,17.9321,162.81,162.73,15.3607]
[1633115024872,17.9321,162.81,162.66,343.97148846]
[1633115025673,17.9321,162.81,162.68,27.69315634]
[1633115026273,20.71236255,162.81,162.66,343.97148846]
[1633115027276,20.71236255,162.81,162.66,367.9441792]
[1633115028680,23.4926251,162.81,162.66,367.9441792]
[1633115030977,23.4926251,162.81,162.67,78.4117]
[1633115036880,23.4926251,162.81,162.68,6.74862115]
[1633115037081,23.4926251,162.81,162.69,21.99714771]
[1633115037280,23.4926251,162.81,162.7,6.74848108]
[1633115037680,17.9321,162.81,162.7,6.74848108]
[1633115041185,15.3621,162.81,162.7,6.74848108]
[1633115041386,0.02088,162.86,162.85,82.62374786]
[1633115041785,2.57,162.92,162.85,82.62374786]
[1633115041984,2.57,162.94,162.85,82.62374786]
[1633115042786,15.3591,162.96,162.86,7.0031601]
[1633115042987,15.3591,162.96,162.86,9.5731601]
[1633115043186,15.3591,162.96,162.88,23.86564801]
[1633115043387,15.3591,162.96,162.89,7.00262866]
[1633115043590,15.3591,162.96,162.88,23.86564801]
[1633115044388,15.3591,162.96,162.86,76.6553]
[1633115044587,15.3591,162.96,162.84,31.02]
[1633115044988,15.3591,162.96,162.85,6.99932998]
[1633115045391,15.3591,162.96,162.85,26.73609604]
[1633115049299,15.3591,162.96,162.84,31.02]
[1633115050219,15.3591,162.96,162.84,58.333958]
[1633115056524,20.00433876,162.96,162.84,58.333958]
[1633115056729,2.57,162.95,162.84,58.333958]
[1633115058127,2.57,162.95,162.84,31.02]
[1633115069241,2.57,162.95,162.85,7.00367087]
[1633115069444,2.57,162.95,162.86,22.91412263]
[1633115069642,2.57,162.95,162.87,7.00374148]
[1633115074553,15.3591,162.96,162.87,7.00374148]
[1633115074952,15.3591,162.96,162.86,22.91412263]
[1633115075552,15.3591,162.96,162.87,7.00422249]
[1633115076151,15.3591,162.96,162.86,7.00471097]
[1633115076753,15.3558,162.9,162.86,32.16971189]
[1633115076954,15.3558,162.9,162.87,7.00456686]
[1633115077552,15.3558,162.9,162.85,7.00459909]
[1633115078352,15.3558,162.9,162.86,27.9816746]
[1633115078551,15.3558,162.9,162.87,7.0043122]
[1633115083355,15.3558,162.9,162.84,31.02]
[1633115083756,5.18084156,162.89,162.84,31.02]
[1633115083958,31.23425576,162.89,162.84,31.02]
[1633115084156,26.0325342,162.88,162.84,31.02]
[1633115084355,2.57,162.87,162.74,24.79201963]
[1633115084555,15.3642,162.81,162.74,24.79201963]
[1633115084756,15.3642,162.81,162.73,84.47787489]
[1633115084959,15.3642,162.81,162.73,79.1373]
[1633115085357,15.3642,162.81,162.69,7.90955506]
[1633115085557,15.3642,162.81,162.69,2.57]
[1633115085757,15.3642,162.81,162.7,21.82450564]
[1633115088964,17.97504156,162.81,162.7,21.82450564]
[1633115094470,17.97504156,162.81,162.7,45.05250564]
[1633115094670,17.97504156,162.81,162.71,2.57]
[1633115094872,15.3642,162.81,162.71,2.57]
[1633115095070,15.3642,162.81,162.72,0.02088]
[1633115095272,15.3642,162.81,162.74,29.1602992]
[1633115095470,15.3642,162.81,162.74,55.1032992]
[1633115097069,2.57,162.89,162.74,55.1032992]
[1633115097269,2.57,162.89,162.74,58.65918079]
[1633115097670,27.34697865,162.88,162.74,31.7302992]
[1633115097875,27.34697865,162.88,162.75,503.01447456]
[1633115098069,27.34697865,162.88,162.77,27.05516156]
[1633115098270,30.8967091,162.88,162.77,27.05516156]
[1633115099070,27.34697865,162.87,162.77,27.05516156]
[1633115101172,2.57,162.89,162.77,27.05516156]
[1633115101373,2.57,162.89,162.77,43.45016156]
[1633115102473,2.57,162.89,162.77,27.05516156]
[1633115103374,29.91697865,162.89,162.77,27.05516156]
[1633115104774,15.3613,162.83,162.77,27.05516156]
[1633115108078,15.3613,162.83,162.76,2.57]
[1633115108278,15.3613,162.83,162.75,503.01447456]
[1633115108478,15.3613,162.83,162.73,2.57]
[1633115108878,15.3613,162.83,162.73,6.12927666]
[1633115109077,15.3613,162.83,162.74,30.18044132]
[1633115110078,15.3613,162.83,162.74,26.62131511]
[1633115110878,15.3613,162.83,162.74,30.18062382]
[1633115111480,15.3613,162.83,162.74,26.62131511]
[1633115112279,15.3613,162.83,162.74,30.18153739]
[1633115112579,15.3613,162.83,162.75,3.56019649]
[1633115113884,15.3613,162.83,162.74,30.18169575]
[1633115114888,15.3613,162.83,162.75,3.5603354]
[1633115121799,15.3613,162.83,162.77,25.23743674]
[1633115122002,15.3613,162.83,162.78,3.56010483]
[1633115122198,2.57,162.89,162.8,29.44483252]
[1633115122598,2.57,162.89,162.8,32.98285741]
[1633115124602,15.3558,162.9,162.81,3.50853825]
[1633115125201,15.3558,162.9,162.82,2.57]
[1633115125403,15.3558,162.9,162.83,29.37253168]
[1633115126406,15.3558,162.9,162.84,2.57]
[1633115126602,27.34697865,162.96,162.85,106.0]
[1633115126803,2.59088,163.0,162.86,22.87401907]
[1633115127003,2.57,163.0,162.87,2.57]
[1633115127204,2.57,163.0,162.88,3.43321065]
[1633115127402,2.57,163.05,162.89,31.54980967]
[1633115127603,25.83031198,163.06,162.9,0.02088]
[1633115127803,25.83031198,163.06,162.91,2.57]
[1633115128004,25.83031198,163.06,162.92,25.3338803]
[1633115128204,25.83031198,163.06,162.93,2.57]
[1633115130208,2.57,163.07,162.93,2.57]
[1633115131510,2.57,163.07,162.93,75.3359]
[1633115132710,2.57,163.07,162.94,0.02088]
[1633115132909,2.57,163.07,162.96,22.95466376]
[1633115133109,2.57,163.07,162.96,25.52466376]
[1633115133515,28.40031198,163.11,162.96,25.52466376]
[1633115134114,25.83031198,163.11,162.96,25.52466376]
[1633115136411,28.40031198,163.11,162.96,25.52466376]
[1633115136616,28.40031198,163.11,162.96,404.61215277]
[1633115137028,2.57,163.11,162.96,404.61215277]
[1633115140216,2.59088,163.11,162.96,404.61215277]
[1633115140415,0.02088,163.1,162.96,404.61215277]
[1633115140615,2.57,163.09,162.96,404.61215277]
[1633115140819,0.02088,163.08,162.96,404.61215277]
[1633115141616,15.3412,163.03,162.96,404.61215277]
[1633115142518,14.8412,163.03,162.96,404.61215277]
[1633115142719,14.8412,163.03,162.96,25.52466376]
[1633115144825,14.8412,163.03,162.96,2.57]
[1633115145422,14.8412,163.03,162.93,2.57]
[1633115145823,14.8412,163.03,162.94,22.85482775]
[1633115149942,14.8412,163.03,162.93,2.57]
[1633115151343,14.8412,163.03,162.94,28.00061538]
[1633115151544,14.8412,163.03,162.93,2.57]
[1633115152544,14.8412,163.03,162.9,2.57]
[1633115152744,40.7437342,163.03,162.9,2.57]
[1633115153344,40.7437342,163.03,162.9,28.19343627]
[1633115153543,2.57,163.02,162.9,28.19343627]
[1633115155544,2.57,163.02,162.9,2.57]
[1633115160653,15.346,162.98,162.9,2.57]
[1633115161852,2.57,163.04,162.91,106.0]
[1633115162051,2.57,163.04,162.92,27.71118915]
[1633115162252,2.59088,163.09,163.04,2.57]
[1633115162456,0.00088,163.09,163.04,20.893]
[1633115162656,0.02088,163.11,163.05,29.22638136]
[1633115162852,118.97756216,163.14,163.05,29.22638136]
[1633115163052,2.57,163.14,163.06,2.57]
[1633115163252,3.55512432,163.18,163.06,2.57]
[1633115163453,2.57,163.24,163.07,3.34273481]
[1633115163658,0.02088,163.33,163.08,2.59088]
[1633115163855,24.46208329,163.29,163.09,0.02088]
[1633115164055,2.57,163.28,163.1,2.57]
[1633115164253,2.57,163.31,163.11,0.02088]
[1633115164453,2.57,163.31,163.12,2.57]
[1633115164653,142.93029333,163.34,163.13,64.22]
[1633115164855,142.93029333,163.34,163.14,31.79638136]
[1633115164856,30.19544084,163.31,163.14,31.79638136]
[1633115165055,30.19544084,163.31,163.15,0.02088]
[1633115165256,24.46208329,163.3,163.16,2.57]
[1633115165455,24.46208329,163.3,163.17,19.09726115]
[1633115165656,24.46208329,163.3,163.18,2.57]
[1633115165852,2.57,163.34,163.18,2.57]
[1633115166654,27.03208329,163.34,163.19,0.02088]
[1633115166856,27.56673228,163.33,163.18,2.57]
[1633115167059,2.57,163.32,163.18,2.57]
[1633115168457,2.57,163.32,163.18,2.59088]
[1633115168655,27.03208329,163.32,163.18,2.59088]
[1633115168854,27.03208329,163.32,163.18,2.57]
[1633115170056,48.19815602,163.32,163.14,0.02088]
[1633115170258,7.00355273,163.31,163.14,0.02088]
[1633115170458,7.00355273,163.31,163.11,2.57]
[1633115170459,2.57,163.3,163.11,2.57]
[1633115170657,25.79835571,163.29,163.11,2.57]
[1633115170858,2.57,163.28,163.11,2.57]
[1633115171056,9.57355273,163.28,163.11,2.59088]
[1633115171657,2.57,163.28,163.11,2.57]
[1633115171856,2.57,163.28,163.12,0.02088]
[1633115172057,2.57,163.28,163.13,2.57]
[1633115172256,2.57,163.28,163.14,0.02088]
[1633115172458,2.57,163.28,163.15,2.57]
[1633115172656,26.97494031,163.27,163.15,2.57]
[1633115172856,2.57,163.3,163.15,2.57]
[1633115174059,24.40039751,163.3,163.15,2.57]
[1633115175661,24.40039751,163.3,163.16,0.02088]
[1633115175863,24.40039751,163.3,163.17,2.57]
[1633115176062,21.83039751,163.3,163.18,23.92580173]
[1633115176260,2.57,163.33,163.19,2.57]
[1633115177262,2.57,163.36,163.19,2.57]
[1633115177462,27.26446317,163.39,163.2,0.02088]
[1633115177463,2.57,163.39,163.2,0.02088]
[1633115177662,2.57,163.39,163.21,2.57]
[1633115177863,2.57,163.39,163.22,0.02088]
[1633115178062,2.57,163.46,163.23,66.79]
[1633115178264,2.57,163.46,163.28,0.02088]
[1633115178463,2.57,163.46,163.3,24.39784078]
[1633115178664,2.57,163.46,163.31,2.59088]
[1633115178864,2.57,163.46,163.32,0.02088]
[1633115179063,2.57,163.46,163.34,23.92580173]
[1633115179263,2.57,163.46,163.33,2.57]
[1633115179264,2.57,163.46,163.35,2.57]
[1633115179463,2.57,163.46,163.33,2.57]
[1633115179863,26.07112586,163.47,163.33,2.57]
[1633115180063,28.64112586,163.47,163.33,18.972]
[1633115180662,51.80320915,163.47,163.33,18.972]
[1633115183064,51.80320915,163.47,163.33,2.57]
[1633115185666,25.73208329,163.47,163.33,2.57]
[1633115190974,2.2288,163.5,163.33,2.57]
[1633115191177,2.2288,163.5,163.34,0.02088]
[1633115191372,2.2288,163.5,163.35,2.57]
[1633115191572,2.2288,163.5,163.36,0.02088]
[1633115191774,2.2288,163.5,163.37,2.57]
[1633115193074,30.03524568,163.49,163.37,2.57]
[1633115194075,25.4081944,163.48,163.37,2.57]
[1633115194475,2.57,163.47,163.32,2.57]
[1633115194874,54.54911681,163.46,163.32,2.57]
[1633115195074,11.83739237,163.46,163.32,2.57]
[1633115195275,4.7988,163.5,163.46,19.82018341]
[1633115195473,2.2288,163.5,163.46,38.12618341]
[1633115196075,2.2288,163.5,163.46,59.02653996]
[1633115196275,2.2288,163.5,163.46,38.12618341]
[1633115196477,2.2288,163.5,163.46,19.82018341]
[1633115197275,27.67060792,163.5,163.46,19.82018341]
[1633115198273,2.2288,163.5,163.46,19.82018341]
[1633115203775,29.83786756,163.49,163.46,19.82018341]
[1633115207078,2.2288,163.5,163.46,19.82018341]
[1633115207977,30.35762759,163.49,163.46,19.82018341]
[1633115210379,2.2288,163.5,163.46,19.82018341]
[1633115212280,31.91122919,163.5,163.46,19.82018341]
[1633115212879,2.2288,163.5,163.46,19.82018341]
[1633115218089,29.10551808,163.49,163.46,19.82018341]
[1633115218887,2.2288,163.5,163.46,19.82018341]
[1633115220487,26.40275231,163.5,163.46,19.82018341]
[1633115222688,24.47764383,163.5,163.46,19.82018341]
[1633115224088,19.82018341,163.46,163.38,2.57]
[1633115224290,19.82018341,163.46,163.35,81.7984]
[1633115224689,22.39018341,163.46,163.35,81.7984]
[1633115225090,29.03053555,163.45,163.35,81.7984]
[1633115225693,29.03053555,163.45,163.35,79.2284]
[1633115226693,54.34704539,163.35,163.32,2.57]
[1633115226896,5.0611712,163.35,163.3,0.02088]
[1633115227095,5.0611712,163.35,163.28,0.02088]
[1633115227294,5.0611712,163.35,163.27,0.02088]
[1633115227496,7.6311712,163.35,163.23,3.08434897]
[1633115227896,7.6311712,163.35,163.21,3.07666483]
[1633115228094,23.09819526,163.34,163.19,7.10625339]
[1633115228294,66.79,163.33,163.18,76.0115]
[1633115228695,64.22,163.31,163.18,76.0115]
[1633115228895,2.57,163.3,163.18,80.15805277]
[1633115229095,29.52356702,163.29,163.18,80.15805277]
[1633115229295,2.57,163.28,163.18,80.15805277]
[1633115229495,2.57,163.28,163.18,76.0115]
[1633115230295,6.79958564,163.28,163.13,3.14913186]
[1633115230495,30.03758564,163.28,163.13,7.12849831]
[1633115230698,30.03758564,163.28,163.13,0.02088]
[1633115231096,30.03758564,163.28,163.12,0.02088]
[1633115231295,30.03758564,163.28,163.11,24.35039553]
[1633115231698,6.79958564,163.28,163.12,9.67707137]
[1633115231902,6.79958564,163.28,163.13,7.1270252]
[1633115232104,2.57,163.28,163.14,2.59088]
[1633115232303,2.57,163.28,163.15,7.1263423]
[1633115232504,2.57,163.28,163.16,2.59088]
[1633115232707,2.57,163.28,163.17,0.02088]
[1633115232907,2.57,163.28,163.17,2.59088]
[1633115233105,2.57,163.28,163.18,0.02088]
[1633115233505,21.4956778,163.27,163.18,0.02088]
[1633115234708,2.57,163.3,163.18,0.02088]
[1633115235510,2.57,163.34,163.19,2.57]
[1633115235710,2.57,163.34,163.2,0.02088]
[1633115235911,5.0611712,163.35,163.22,0.02088]
[1633115236111,5.0611712,163.35,163.23,2.57]
[1633115236312,5.0611712,163.35,163.24,0.02088]
[1633115236508,5.0611712,163.35,163.25,2.57]
[1633115236709,5.0611712,163.35,163.26,0.02088]
[1633115236910,5.0611712,163.35,163.27,2.57]
[1633115237110,5.0611712,163.35,163.27,2.59088]
[1633115237912,2.57,163.46,163.35,5.0611712]
[1633115238212,2.57,163.49,163.35,22.0791712]
[1633115238615,0.30369152,163.5,163.36,79.3154]
[1633115238813,0.30369152,163.5,163.37,2.57]
[1633115239010,0.30369152,163.5,163.37,9.23511477]
[1633115240416,23.71292153,163.5,163.37,9.23511477]
[1633115240615,23.71292153,163.5,163.38,0.02088]
[1633115240814,0.30369152,163.5,163.39,2.57]
[1633115241012,0.30369152,163.5,163.4,2.57]
[1633115241812,24.78186019,163.49,163.4,2.57]
[1633115242918,0.30369152,163.5,163.4,25.63480579]
[1633115243314,0.30369152,163.5,163.4,2.57]
[1633115243515,2.57,163.49,163.35,7.6311712]
[1633115243715,19.88516508,163.49,163.35,7.6311712]
[1633115244315,25.47547565,163.48,163.35,5.0611712]
[1633115244516,2.57,163.47,163.35,5.0611712]
[1633115244915,14.8246889,163.47,163.35,5.0611712]
[1633115245116,0.02088,163.46,163.35,5.0611712]
[1633115245318,2.57,163.45,163.35,5.0611712]
[1633115245518,30.23528868,163.44,163.35,5.0611712]
[1633115245717,2.57,163.43,163.35,5.0611712]
[1633115246318,12.2546889,163.47,163.35,5.0611712]
[1633115246319,2.57,163.47,163.35,5.0611712]
[1633115246517,2.57,163.47,163.35,22.4631712]
[1633115246919,2.57,163.47,163.36,22.07220672]
[1633115247117,0.30369152,163.5,163.37,2.57]
[1633115248121,26.70766041,163.56,163.37,2.57]
[1633115248419,2.57,163.61,163.38,92.9384598]
[1633115248621,2.66005594,163.63,163.4,64.22]
[1633115248819,0.09005594,163.63,163.44,64.22]
[1633115249020,0.09005594,163.63,163.46,64.24088]
[1633115249219,0.09005594,163.63,163.47,2.59088]
[1633115249420,0.09005594,163.63,163.48,0.02088]
[1633115249623,0.09005594,163.63,163.49,2.57]
[1633115249820,0.09005594,163.63,163.5,0.02088]
[1633115250023,0.09005594,163.63,163.51,2.57]
[1633115250219,0.09005594,163.63,163.52,22.07220672]
[1633115250420,0.09005594,163.63,163.53,2.57]
[1633115250821,0.09005594,163.63,163.53,75.2853]
[1633115251024,5.594e-05,163.63,163.53,75.2853]
[1633115251223,5.594e-05,163.63,163.58,0.02088]
[1633115251624,5.594e-05,163.63,163.56,16.523]
[1633115251625,5.594e-05,163.63,163.59,2.57]
[1633115251824,5.594e-05,163.63,163.59,2.59088]
[1633115252024,5.594e-05,163.63,163.6,2.57]
[1633115252230,5.594e-05,163.63,163.6,24.99588]
[1633115252424,5.594e-05,163.63,163.61,0.02088]
[1633115252626,5.594e-05,163.63,163.62,108.57]
[1633115253023,5.594e-05,163.63,163.62,106.02088]
[1633115253627,5.594e-05,163.63,163.62,108.10088]
[1633115253824,5.594e-05,163.63,163.62,2.08]
[1633115254625,5.594e-05,163.63,163.62,81.08]
[1633115255224,5.594e-05,163.63,163.62,2.08]
[1633115255426,5.594e-05,163.63,163.59,2.08]
[1633115256226,22.81405594,163.63,163.59,2.08]
[1633115256426,22.81405594,163.63,163.55,2.08]
[1633115257025,23.49346204,163.62,163.55,2.08]
[1633115257830,23.49346204,163.62,163.51,2.08]
[1633115258030,23.49346204,163.62,163.48,2.08]
[1633115258627,23.49346204,163.62,163.48,7.91790666]
[1633115259631,23.49346204,163.62,163.48,7.93878666]
[1633115259829,5.594e-05,163.63,163.48,7.93878666]
[1633115260429,5.594e-05,163.63,163.49,26.51253894]
[1633115260629,5.594e-05,163.63,163.5,2.10088]
[1633115260832,5.594e-05,163.63,163.51,0.02088]
[1633115261033,5.594e-05,163.63,163.47,2.08]
[1633115261629,25.43521685,163.63,163.48,24.80204172]
[1633115261830,25.43521685,163.63,163.49,2.08]
[1633115262429,5.594e-05,163.63,163.49,2.08]
[1633115263431,5.594e-05,163.63,163.5,0.02088]
[1633115263635,5.594e-05,163.63,163.51,54.07]
[1633115263832,5.594e-05,163.63,163.53,0.02088]
[1633115264033,5.594e-05,163.63,163.54,2.08]
[1633115264233,5.594e-05,163.63,163.56,0.02088]
[1633115264432,0.02088,163.85,163.62,2.45301296]
[1633115264633,2.08,163.84,163.63,2.08]
[1633115264832,2.08,163.83,163.64,2.08]
[1633115265032,2.08,163.82,163.65,2.08]
[1633115265235,2.10088,163.81,163.6,2.08]
[1633115265434,29.8232645,163.8,163.6,2.08]
[1633115265634,2.10088,163.79,163.6,2.08]
[1633115266237,25.80088,163.79,163.6,2.08]
[1633115266635,12.34486285,163.78,163.58,439.22203691]
[1633115266837,2.08,163.77,163.58,439.22203691]
[1633115267237,0.02088,163.76,163.59,2.08]
[1633115267436,2.08,163.79,163.6,31.42574921]
[1633115267635,29.8023845,163.8,163.6,31.42574921]
[1633115267835,31.8823845,163.8,163.61,0.02088]
[1633115268036,0.14444444,163.79,163.62,2.08]
[1633115268236,3.78846534,163.79,163.63,2.08]
[1633115268845,2.08,163.83,163.63,2.08]
[1633115269438,30.0749429,163.82,163.63,2.08]
[1633115270236,38.3740958,163.82,163.63,2.08]
[1633115270837,8.2991529,163.82,163.64,0.02088]
[1633115271039,2.08,163.85,163.65,2.08]
[1633115271238,10.3791529,163.85,163.65,2.10088]
[1633115271837,27.62941989,163.84,163.65,2.10088]
[1633115272437,46.71541989,163.84,163.65,2.08]
[1633115272638,48.79541989,163.84,163.65,2.08]
[1633115272838,3.78846534,163.83,163.65,2.08]